lending/lending_fUSD_20240110
["ID","MTS","AMOUNT","RATE_DAILY","PERIOD"]
[311115534,1704917438168,-433.47911193,0.00023,2]
[311115536,1704917438180,-353136.02262825,0.00023,2]
[311115538,1704917438192,-761.18262149,0.00023,2]
[311115540,1704917438204,-1150.04056885,0.00023,2]
[311115543,1704917438219,-1285.22235789,0.00023,2]
[311115545,1704917438230,-951.26132272,0.00023,2]
[311115548,1704917438241,-331.79307568,0.00023,2]
[311115550,1704917438253,-24318.68346496,0.00023,2]
[311115552,1704917438265,-500.09446756,0.00023,2]
[311115554,1704917438276,-11981.78774599,0.00023,2]
[311115556,1704917438285,-159.46,0.00023003,2]
[311115558,1704917438295,-176.01,0.00023096,2]
[311115560,1704917438304,-159.46,0.00023108,2]
[311115562,1704917438313,-330.0,0.0002313,2]
[311115563,1704917438322,-157.79,0.00023145,2]
[311115564,1704917438332,-159.46,0.00023213,2]
[311115565,1704917438341,-159.46,0.00023318,2]
[311115566,1704917438350,-750.39,0.00023323,2]
[311115567,1704917438359,-157.79,0.00023353,2]
[311115568,1704917438368,-157.79,0.00023562,2]
[311115569,1704917438377,-176.01,0.00023644,2]
[311115570,1704917438387,-157.79,0.0002377,2]
[311115571,1704917438396,-157.79,0.00023979,2]
[311115572,1704917438406,-157.79,0.00024187,2]
[311115573,1704917438415,-176.01,0.00024192,2]
[311115574,1704917438429,-750.39,0.00024301,2]
[311115575,1704917438438,-157.79,0.00024396,2]
[311115576,1704917438448,-983.61,0.00024591,2]
[311115577,1704917438457,-157.79,0.00024604,2]
[311115578,1704917438467,-250.0,0.00024658,2]
[311115579,1704917438476,-176.01,0.0002474,2]
[311115580,1704917438485,-250.79,0.0002477,2]
[311115581,1704917438495,-156.48932567,0.0002479,2]
[311115582,1704917438504,-210.0,0.00024795,2]
[311115583,1704917438513,-157.79,0.00024813,2]
[311115584,1704917438523,-201.30584594,0.00025,2]
[311115585,1704917438533,-10747.4709269,0.00025,2]
[311115586,1704917438542,-350.0,0.00025,3]
[311115587,1704917438552,-157.79,0.00025021,2]
[311115588,1704917438561,-400.0,0.00025138,2]
[311115589,1704917438570,-157.79,0.0002523,2]
[311115590,1704917438579,-750.39,0.0002528,2]
[311115591,1704917438589,-208.15587128,0.00025288,2]
[311115592,1704917438598,-1164.93168546,0.00025326,2]
[311115593,1704917438608,-166.51,0.00025624,2]
[311115594,1704917438616,-250.79,0.00025671,2]
[311115595,1704917438626,-160.17,0.00026064,2]
[311115596,1704917438635,-150.0,0.00026079,2]
[311115597,1704917438644,-750.39,0.00026258,2]
[311115598,1704917438653,-964.75818134,0.00026397,2]
[311115599,1704917438662,-250.79,0.00026573,2]
[311115600,1704917438675,-448.01,0.00026575,2]
[311115601,1704917438685,-1295.57,0.00026575,2]
[311115602,1704917438694,-1000.0,0.00026616,2]
[311115603,1704917438704,-156.48932567,0.00026793,2]
[311115604,1704917438715,-983.61,0.00026855,2]
[311115605,1704917438725,-167.42,0.00026967,2]
[311115606,1704917438734,-400.0,0.00027,3]
[311115607,1704917438744,-750.39,0.00027237,2]
[311115608,1704917438753,-250.0,0.00027397,2]
[311115609,1704917438762,-2537.34628742,0.00027397,2]
[311115610,1704917438779,-2428.35207815,0.00027397,2]
[311115611,1704917438790,-2464.9625,0.00027397,2]
[311115612,1704917438801,-1251.38715086,0.00027397,2]
[311115617,1704917440182,-2831.47817376,0.00027397,2]
[311115618,1704917440794,-2935.11380981,0.00027397,2]
[311115619,1704917440804,-500.0,0.000274,2]
[311115620,1704917440813,-250.79,0.00027475,2]
[311115621,1704917440822,-14448.64,0.00027556,2]
[311115622,1704917440832,-160.17,0.00027699,2]
[311115623,1704917440841,-14448.64,0.00027714,2]
[311115624,1704917440850,-1164.93168546,0.00027753,3]
[311115625,1704917440859,-174.82840187,0.00027813,2]
[311115626,1704917440868,-202.53,0.00027871,2]
[311115627,1704917440878,-202.53,0.00027871,2]
[311115628,1704917440887,-14448.64,0.00027872,2]
[311115629,1704917440898,-600.0,0.00027912,2]
[311115630,1704917440910,-400.0,0.00027931,2]
[311115631,1704917440920,-459.08475827,0.00027959,2]
[311115632,1704917440931,-161.17692113,0.00027959,2]
[311115633,1704917440942,-14448.64,0.0002803,2]
[311115634,1704917440952,-2101.04435838,0.00028143,2]
[311115635,1704917440961,-14448.64,0.00028189,2]
[311115636,1704917440971,-750.39,0.00028215,2]
[311115637,1704917440981,-243.80387807,0.00028242,2]
[311115638,1704917440991,-383.84892023,0.00028242,2]
[311115640,1704917441000,-244.3789014,0.00028242,2]
[311115642,1704917441010,-308.66623732,0.00028242,2]
[311115643,1704917441020,-549.68176554,0.00028242,2]
[311115645,1704917441030,-499.86522416,0.00028242,2]
[311115647,1704917441039,-155.0,0.00028242,2]
[311115649,1704917441049,-5311.83056493,0.00028242,2]
[311115651,1704917441057,-1497.43057396,0.00028242,2]
[311115652,1704917441067,-288.34262207,0.00028242,2]
[311115653,1704917441076,-10514.57275179,0.00028243,2]
[311115654,1704917441084,-16713.83662006,0.00028243,2]
[311115655,1704917441094,-11523.88371586,0.00028243,2]
[311115656,1704917441103,-4287.18806314,0.00028243,2]
[311115657,1704917441112,-33683.20416808,0.00028244,2]
[311115658,1704917441122,-14448.64,0.00028347,2]
[311115659,1704917441131,-250.79,0.00028377,2]
[311115660,1704917441140,-14448.64,0.00028505,2]
[311115661,1704917441150,-14448.64,0.00028664,2]
[311115662,1704917441160,-156.48932567,0.00028797,2]
[311115663,1704917441170,-14448.64,0.00028822,2]
[311115664,1704917441182,-1040.01518079,0.00029,2]
[311115665,1704917441191,-450.0,0.00029,3]
[311115666,1704917441201,-983.61,0.00029118,2]
[311115667,1704917441211,-750.39,0.00029194,2]
[311115668,1704917441221,-2101.04435829,0.00029211,2]
[311115669,1704917441230,-250.79,0.00029279,2]
[311115670,1704917441240,-166.51,0.00029285,2]
[311115671,1704917441249,-160.17,0.00029333,2]
[311115672,1704917441259,-20989.0,0.000294,2]
[311115673,1704917441268,-19095.86780733,0.000295,2]
[311115674,1704917441278,-156.02577581,0.000295,3]
[311115675,1704917441287,-3212.0,0.000295,2]
[311115676,1704917441297,-382818.35091186,0.000298,2]
[311115677,1704917441306,-151.0,0.000298,7]
[311115678,1704917441316,-151.0,0.000298,7]
[311115679,1704917441325,-151.0,0.000298,7]
[311115680,1704917441334,-151.0,0.000298,7]
[311115681,1704917441343,-151.0,0.000298,7]
[311115682,1704917441353,-151.0,0.000298,7]
[311115683,1704917441362,-151.0,0.000298,7]
[311115684,1704917441371,-151.0,0.000298,7]
[311115685,1704917441381,-151.0,0.000298,7]
[311115686,1704917441390,-151.0,0.000298,7]
[311115687,1704917441400,-151.0,0.000298,7]
[311115688,1704917441409,-151.0,0.000298,7]
[311115689,1704917441419,-151.0,0.000298,7]
[311115690,1704917441431,-151.0,0.000298,7]
[311115691,1704917441441,-151.0,0.000298,7]
[311115692,1704917441450,-151.0,0.000298,7]
[311115693,1704917441460,-151.0,0.000298,7]
[311115694,1704917441469,-151.0,0.000298,7]
[311115695,1704917441640,-151.0,0.000298,7]
[311115696,1704917441650,-151.0,0.000298,7]
[311115697,1704917441659,-151.0,0.000298,7]
[311115698,1704917441669,-151.0,0.000298,7]
[311115699,1704917441680,-151.0,0.000298,7]
[311115700,1704917441689,-151.0,0.000298,7]
[311115701,1704917441699,-151.0,0.000298,7]
[311115702,1704917441708,-151.0,0.000298,7]
[311115703,1704917441718,-151.0,0.000298,7]
[311115704,1704917441727,-151.0,0.000298,7]
[311115705,1704917441736,-388.49207,0.000298,7]
[311115706,1704917441745,-964.75818134,0.00029886,2]
[311115707,1704917441754,-1633.12898622,0.00029898,2]
[311115708,1704917441763,-1011.35059457,0.00029898,2]
[311115709,1704917441772,-285.54206337,0.00029898,2]
[311115710,1704917441781,-349.03154166,0.00029898,2]
[311115711,1704917441790,-174.48037452,0.00029898,2]
[311115712,1704917441799,-484.23242473,0.00029898,2]
[311115713,1704917441808,-156.1273939,0.00029899,2]
[311115714,1704917441817,-814.52419735,0.000299,2]
[311115715,1704917441826,-814.52419731,0.000299,2]
[311115716,1704917441834,-814.52419731,0.000299,2]
[311115717,1704917441844,-814.52419731,0.000299,2]
[311115718,1704917441854,-814.52419731,0.000299,2]
[311115719,1704917441863,-814.52419731,0.000299,2]
[311115720,1704917441872,-814.52419731,0.000299,2]
[311115721,1704917441882,-814.52419731,0.000299,2]
[311115722,1704917441891,-814.52419731,0.000299,2]
[311115723,1704917441904,-814.52419731,0.000299,2]
[311115724,1704917441913,-155.0,0.0003,2]
[311115725,1704917441925,-154.0,0.0003,2]
[311115726,1704917441934,-166.44469578,0.000301,2]
[311115727,1704917441943,-300.0,0.00030136,2]
[311115728,1704917441953,-300.0,0.00030136,2]
[311115729,1704917441962,-300.0,0.00030136,2]
[311115730,1704917441970,-414.19751056,0.00030136,2]
[311115731,1704917441977,-153.84,0.00030137,2]
[311115732,1704917441985,-5427.33,0.00030137,2]
[311115733,1704917441994,-750.39,0.00030172,2]
[311115734,1704917442002,-1164.93168546,0.00030179,4]
[311115735,1704917442010,-814.52419731,0.00030249,2]
[311115736,1704917442019,-2101.04435829,0.00030279,2]
[311115737,1704917442028,-155.41791625,0.00030356,4]
[311115738,1704917442037,-155.0,0.00030356,2]
[311115739,1704917442047,-167.09,0.00030483,2]
[311115740,1704917442056,-4690.62675297,0.00030597,4]
[311115741,1704917442065,-428.71667088,0.00030697,5]
[311115742,1704917442075,-400.0,0.00030724,2]
[311115743,1704917442083,-1084.13,0.00030773,2]
[311115744,1704917442093,-374.29397757,0.000308,2]
[311115745,1704917442102,-156.48932567,0.000308,2]
[311115746,1704917442111,-151.54447523,0.000309,2]
[311115747,1704917442120,-151.54447451,0.000309,2]
[311115748,1704917442130,-151.54447451,0.000309,2]
[311115749,1704917442139,-151.54447451,0.000309,2]
[311115750,1704917442149,-151.54447451,0.000309,2]
[311115751,1704917442158,-151.54447451,0.000309,2]
[311115752,1704917442167,-151.54447451,0.000309,2]
[311115753,1704917442178,-160.17,0.00030967,2]
[311115754,1704917442188,-814.52419731,0.00030984,2]
[311115755,1704917442197,-1175.58462421,0.00031,7]
[311115756,1704917442207,-500.0,0.00031,3]
[311115757,1704917442216,-296.55,0.00031,2]
[311115758,1704917442226,-153.84,0.0003105,2]
[311115759,1704917442236,-750.39,0.00031151,2]
[311115760,1704917442245,-151.54447451,0.00031165,2]
[311115761,1704917442255,-2101.04435829,0.00031347,2]
[311115762,1704917442265,-983.61,0.00031382,2]
[311115763,1704917442275,-600.0,0.00031402,2]
[311115764,1704917442284,-151.54447451,0.00031597,2]
[311115765,1704917442294,-814.52419731,0.00031719,2]
[311115766,1704917442303,-12708.6361098,0.000318,3]
[311115767,1704917442312,-153.84,0.00031963,2]
[311115768,1704917442322,-3217.33931123,0.00032,2]
[311115769,1704917442331,-200.0,0.00032,2]
[311115770,1704917442340,-150.0,0.00032,2]
[311115771,1704917442349,-151.54447451,0.00032029,2]
[311115772,1704917442358,-616.05,0.000321,2]
[311115773,1704917442368,-750.39,0.00032129,2]
[311115774,1704917442377,-2101.04435829,0.00032415,4]
[311115775,1704917442386,-814.52419731,0.00032454,2]
[311115776,1704917442395,-151.54447451,0.0003246,2]
[311115777,1704917442404,-204.0,0.00032513,2]
[311115778,1704917442413,-1164.93168546,0.00032606,6]
[311115779,1704917442423,-156.48932567,0.00032804,2]
[311115780,1704917442434,-2964.46,0.00032839,2]
[311115781,1704917442443,-153.84,0.00032877,2]
[311115782,1704917442452,-349.51,0.00032877,15]
[311115783,1704917442461,-151.54447451,0.00032892,2]
[311115784,1704917442470,-1000.0,0.000329,2]
[311115785,1704917442479,-166.51,0.00032946,2]
[311115786,1704917442488,-550.0,0.00033,3]
[311115789,1704917442498,-750.39,0.00033108,2]
[311115790,1704917442507,-157.74299812,0.00033161,2]
[311115794,1704917442516,-814.52419731,0.00033189,2]
[311115798,1704917442526,-151.54447451,0.00033324,2]
[311115802,1704917442535,-964.75818134,0.00033375,2]
[311115805,1704917442545,-2101.04435829,0.00033483,5]
[311115809,1704917442554,-400.0,0.00033517,2]
[311115811,1704917442563,-983.61,0.00033646,2]
[311115812,1704917442572,-151.54447451,0.00033755,2]
[311115814,1704917442581,-153.84,0.0003379,2]
[311115816,1704917442590,-1376.30650892,0.00033868,2]
[311115817,1704917442599,-589.459,0.00033905,2]
[311115819,1704917442608,-814.52419731,0.00033924,2]
[311115821,1704917442617,-1000.0,0.00034,4]
[311115822,1704917442626,-500.0,0.00034,3]
[311115824,1704917442636,-164.04600604,0.00034,20]
[311115826,1704917442645,-500.0,0.00034,2]
[311115827,1704917442654,-750.39,0.00034086,2]
[311115829,1704917442663,-1376.30650892,0.00034087,2]
[311115830,1704917442672,-151.54447451,0.00034187,2]
[311115831,1704917442685,-1500.0,0.000342,2]
[311115832,1704917442694,-500.0,0.00034325,2]
[311115834,1704917442705,-200.0,0.00034325,2]
[311115836,1704917442714,-800.0,0.00034325,5]
[311115838,1704917442723,-500.0,0.00034355,2]
[311115840,1704917442732,-500.0,0.00034355,2]
[311115842,1704917442741,-1376.30650892,0.00034375,2]
[311115844,1704917442750,-500.0,0.0003452,2]
[311115846,1704917442759,-500.0,0.0003452,2]
[311115848,1704917442767,-500.0,0.0003452,2]
[311115850,1704917442777,-3795.45,0.00034521,2]
[311115851,1704917442786,-500.0,0.00034548,2]
[311115852,1704917442795,-2101.04435829,0.0003455,7]
[311115853,1704917442804,-211.40857,0.0003456,2]
[311115854,1704917442813,-151.54447451,0.00034619,2]
[311115855,1704917442823,-500.0,0.00034626,2]
[311115856,1704917442832,-200.0,0.00034626,2]
[311115857,1704917442841,-180.0,0.00034658,2]
[311115858,1704917442850,-814.52419731,0.00034659,2]
[311115859,1704917442859,-153.84,0.00034703,2]
[311115860,1704917442869,-196.98873091,0.00034707,2]
[311115861,1704917442878,-1376.30650892,0.00034735,2]
[311115862,1704917442887,-1218.647,0.00034751,2]
[311115863,1704917442897,-192.95777321,0.000348,2]
[311115864,1704917442908,-204.0,0.00034803,6]
[311115865,1704917442918,-362.97153368,0.00034805,2]
[311115866,1704917442927,-296.77175681,0.00034805,2]
[311115867,1704917442945,-193.32326264,0.00034806,2]
[311115868,1704917442955,-156.48932567,0.00034807,2]
[311115869,1704917442964,-500.0,0.00034807,2]
[311115870,1704917442973,-2913.6763,0.00034807,2]
[311115871,1704917442982,-100000.0,0.00034807,2]
[311115872,1704917442991,-294.128578,0.00034807,7]
[311115874,1704917443001,-151.0,0.00034807,7]
[311115876,1704917443010,-151.0,0.00034807,7]
[311115878,1704917443019,-150.0,0.00034847,2]
[311115880,1704917443028,-300.0,0.00034851,2]
[311115882,1704917443037,-150.0,0.00034867,2]
[311115884,1704917443047,-600.0,0.00034891,2]
[311115886,1704917443057,-2064.44932463,0.00034897,2]
[311115888,1704917443066,-1943.30249397,0.000349,2]
[311115890,1704917443075,-1943.30249385,0.000349,2]
[311115892,1704917443084,-1943.30249385,0.000349,2]
[311115894,1704917443093,-1943.30249385,0.000349,2]
[311115896,1704917443103,-1943.30249385,0.000349,2]
[311115898,1704917443112,-1943.30249385,0.000349,2]
[311115900,1704917443121,-1943.30249385,0.000349,2]
[311115902,1704917443130,-1943.30249385,0.000349,2]
[311115904,1704917443140,-5000.0,0.000349,2]
[311115906,1704917443149,-300.0,0.000349,8]
[311115907,1704917443159,-35659.1389,0.000349,3]
[311115910,1704917443169,-150.0,0.000349,8]
[311115911,1704917443186,-251.20831293,0.00034905,2]
[311115914,1704917443195,-156.18875619,0.00034905,4]
[311115916,1704917443205,-197.55236969,0.00034905,4]
[311115918,1704917443215,-230.53959902,0.00034905,4]
[311115920,1704917443224,-347.7913174,0.00034905,4]
[311115922,1704917443233,-155.0,0.00034905,4]
[311115924,1704917443243,-515.1000562,0.00034905,4]
[311115926,1704917443252,-197.35773212,0.00034906,4]
[311115928,1704917443261,-674.49827964,0.00034906,4]
[311115930,1704917443270,-355.43072761,0.00034906,4]
[311115932,1704917443279,-2400.21820822,0.00034906,3]
[311115933,1704917443289,-1500.0,0.00034906,2]
[311115935,1704917443299,-42185.55785803,0.00034907,10]
[311115938,1704917443308,-5000.0,0.00034907,10]
[311115939,1704917443317,-200.0,0.00034907,2]
[311115942,1704917443327,-5719.54099564,0.00034907,10]
[311115944,1704917443336,-7307.58591228,0.00034907,10]
[311115946,1704917443346,-11648.38863468,0.00034907,10]
[311115948,1704917443355,-990.6216042,0.00034907,2]
[311115949,1704917443364,-5385.90234982,0.00034907,10]
[311115951,1704917443373,-3817.0309616,0.00034907,2]
[311115953,1704917443383,-6029.73393537,0.00034907,10]
[311115954,1704917443392,-32631.8689999,0.00034907,2]
[311115956,1704917443402,-14139.3627786,0.00034907,2]
[311115958,1704917443412,-151.0,0.00034907,7]
[311115960,1704917443421,-151.0,0.00034907,7]
[311115962,1704917443436,-151.0,0.00034907,7]
[311115964,1704917443447,-151.0,0.00034907,7]
[311115966,1704917443456,-151.0,0.00034907,7]
[311115968,1704917443465,-151.0,0.00034907,7]
[311115970,1704917443475,-151.0,0.00034907,7]
[311115972,1704917443485,-151.0,0.00034907,7]
[311115974,1704917443494,-182.281348,0.00034907,7]
[311115976,1704917443504,-151.0,0.00034907,7]
[311115978,1704917443514,-151.0,0.00034907,7]
[311115980,1704917443523,-151.0,0.00034907,7]
[311115982,1704917443532,-214.031595,0.00034907,7]
[311115983,1704917443542,-151.0,0.00034907,7]
[311115984,1704917443551,-151.0,0.00034907,7]
[311115985,1704917443560,-290.688944,0.00034907,7]
[311115986,1704917443570,-151.0,0.00034907,7]
[311115987,1704917443579,-151.0,0.00034907,7]
[311115988,1704917443588,-151.0,0.00034907,7]
[311115989,1704917443598,-388.49207,0.00034907,7]
[311115990,1704917443608,-211.40858,0.0003492,2]
[311115991,1704917443618,-859.686719,0.00034931,2]
[311115992,1704917443627,-2004.66428,0.00034931,2]
[311115993,1704917443637,-3608.395704,0.00034931,2]
[311115994,1704917443646,-2806.529992,0.00034931,2]
[311115995,1704917443656,-6028.050851,0.00034931,2]
[311115996,1704917443666,-250.0,0.00034968,2]
[311115997,1704917443676,-292.83352514,0.0003498,3]
[311115998,1704917443686,-100000.0,0.00035,2]
[311116000,1704917443695,-151.0,0.00035,7]
[311116002,1704917443704,-16417.45689362,0.00035,2]
[311116004,1704917443713,-5000.0,0.00035,2]
[311116006,1704917443722,-155.0,0.00035,2]
[311116008,1704917443731,-200.0,0.00035,5]
[311116010,1704917443741,-1000.0,0.00035,2]
[311116012,1704917443750,-2500.0,0.00035,2]
[311116014,1704917443759,-18453.0,0.00035,2]
[311116016,1704917443769,-5427.6045582,0.00035,2]
[311116018,1704917443777,-1872.5651875,0.00035,14]
[311116020,1704917443786,-3825.804966,0.00035,2]
[311116022,1704917443795,-600.0,0.00035,3]
[311116024,1704917443804,-3000.0,0.00035,2]
[311116026,1704917443813,-155.56148627,0.00035,2]
[311116028,1704917443822,-500.0,0.00035,3]
[311116030,1704917443831,-6513.75475721,0.00035,2]
[311116031,1704917443840,-320.44006328,0.00035,2]
[311116034,1704917443850,-320.44006328,0.00035,2]
[311116035,1704917443859,-320.44006328,0.00035,2]
[311116037,1704917443868,-320.44006328,0.00035,2]
[311116039,1704917443877,-320.44006328,0.00035,2]
[311116042,1704917443887,-320.44006328,0.00035,2]
[311116044,1704917443897,-320.44006328,0.00035,2]
[311116046,1704917443910,-320.44006328,0.00035,2]
[311116047,1704917443919,-320.44006328,0.00035,2]
[311116050,1704917443930,-320.44006328,0.00035,2]
[311116051,1704917443939,-320.44006328,0.00035,2]
[311116054,1704917443950,-320.44006328,0.00035,2]
[311116056,1704917443959,-320.44006328,0.00035,2]
[311116058,1704917443968,-320.44006328,0.00035,2]
[311116059,1704917443976,-320.44006328,0.00035,2]
[311116061,1704917443985,-320.44006328,0.00035,2]
[311116063,1704917443994,-320.44006328,0.00035,2]
[311116065,1704917444003,-320.44006328,0.00035,2]
[311116067,1704917444012,-320.44006328,0.00035,2]
[311116069,1704917444021,-320.44006328,0.00035,2]
[311116071,1704917444029,-320.44006328,0.00035,2]
[311116073,1704917444038,-320.44006328,0.00035,2]
[311116075,1704917444047,-320.44006328,0.00035,2]
[311116077,1704917444056,-320.44006328,0.00035,2]
[311116079,1704917444065,-320.44006328,0.00035,2]
[311116081,1704917444074,-320.44006328,0.00035,2]
[311116083,1704917444083,-320.44006328,0.00035,2]
[311116085,1704917444091,-320.44006328,0.00035,2]
[311116087,1704917444100,-320.44006328,0.00035,2]
[311116090,1704917444109,-320.44006328,0.00035,2]
[311116092,1704917444118,-320.44006328,0.00035,2]
[311116094,1704917444127,-320.44006328,0.00035,2]
[311116095,1704917444136,-320.44006328,0.00035,2]
[311116097,1704917444144,-320.44006328,0.00035,2]
[311116100,1704917444154,-320.44006328,0.00035,2]
[311116101,1704917444163,-320.44006328,0.00035,2]
[311116103,1704917444172,-320.44006328,0.00035,2]
[311116120,1704917444316,-320.44006328,0.00035,2]
[311116122,1704917444326,-320.44006328,0.00035,2]
[311116124,1704917444335,-320.44006328,0.00035,2]
[311116126,1704917444344,-320.44006328,0.00035,2]
[311116128,1704917444354,-320.44006328,0.00035,2]
[311116130,1704917444363,-320.44006328,0.00035,2]
[311116132,1704917444372,-320.44006328,0.00035,2]
[311116134,1704917444381,-320.44006328,0.00035,2]
[311116136,1704917444390,-320.44006328,0.00035,2]
[311116138,1704917444399,-320.44006328,0.00035,2]
[311116140,1704917444409,-320.44006328,0.00035,2]
[311116142,1704917444418,-320.44006328,0.00035,2]
[311116144,1704917444429,-320.44006328,0.00035,2]
[311116146,1704917444439,-3000.0,0.0003501,2]
[311116148,1704917444449,-450.0,0.0003502,3]
[311116150,1704917444459,-3000.0,0.0003502,2]
[311116152,1704917444468,-3000.0,0.0003503,2]
[311116154,1704917444477,-1164.93168546,0.00035032,7]
[311116156,1704917444486,-5192.235475,0.0003504,2]
[311116158,1704917444495,-151.0,0.0003504,7]
[311116160,1704917444504,-151.0,0.0003504,7]
[311116162,1704917444513,-151.0,0.0003504,7]
[311116164,1704917444522,-151.54447451,0.00035051,2]
[311116166,1704917444531,-750.39,0.00035065,2]
[311116168,1704917444540,-151.0,0.00035068,7]
[311116170,1704917444550,-151.0,0.00035068,7]
[311116172,1704917444559,-151.0,0.00035068,7]
[311116174,1704917444568,-388.49207,0.00035068,7]
[311116176,1704917444578,-1074.608399,0.00035068,2]
[311116178,1704917444587,-2505.83035,0.00035068,2]
[311116180,1704917444597,-4510.49463,0.00035068,2]
[311116182,1704917444606,-3508.16249,0.00035068,2]
[311116184,1704917444615,-7535.063564,0.00035068,2]
[311116186,1704917444625,-819.66922074,0.00035086,2]
[311116188,1704917444634,-151.0,0.00035096,7]
[311116190,1704917444643,-151.0,0.00035096,7]
[311116192,1704917444652,-151.0,0.00035096,7]
[311116194,1704917444662,-151.0,0.00035096,7]
[311116196,1704917444672,-500.0,0.00035096,2]
[311116198,1704917444687,-1000.0,0.000352,2]
[311116200,1704917444696,-2027.567967,0.000352,2]
[311116202,1704917444706,-500.0,0.00035237,2]
[311116204,1704917444716,-1376.30650892,0.00035275,2]
[311116206,1704917444726,-875.0,0.000353,2]
[311116208,1704917444738,-150.4168097,0.00035318,2]
[311116210,1704917444747,-1504.451759,0.00035342,2]
[311116212,1704917444757,-3508.16249,0.00035342,2]
[311116214,1704917444768,-6314.692482,0.00035342,2]
[311116216,1704917444778,-4911.427486,0.00035342,2]
[311116219,1704917444789,-10549.088989,0.00035342,2]
[311116221,1704917444799,-814.52419731,0.00035394,2]
[311116223,1704917444808,-5000.0,0.00035444,4]
[311116225,1704917444818,-1500.0,0.00035454,3]
[311116227,1704917444828,-1376.30650892,0.00035455,2]
[311116229,1704917444838,-151.54447451,0.00035482,2]
[311116231,1704917444847,-150.0,0.00035483,7]
[311116233,1704917444857,-278.0,0.00035483,7]
[311116235,1704917444866,-1943.30249385,0.0003554,2]
[311116237,1704917444875,-211.40858,0.0003554,2]
[311116239,1704917444885,-500.0,0.00035591,2]
[311116241,1704917444895,-1000.0,0.000356,2]
[311116243,1704917444909,-636.30123367,0.00035616,2]
[311116245,1704917444918,-153.84,0.00035616,2]
[311116247,1704917444932,-150.0,0.00035616,2]
[311116248,1704917444941,-2101.04435829,0.00035618,8]
[311116250,1704917444951,-500.0,0.00035644,2]
[311116251,1704917444960,-151.0,0.00035728,7]
[311116252,1704917444970,-151.0,0.00035742,7]
[311116253,1704917444979,-151.0,0.00035742,7]
[311116254,1704917444989,-151.0,0.00035742,7]
[311116255,1704917445000,-151.0,0.00035742,7]
[311116256,1704917445010,-3795.45,0.00035798,2]
[311116257,1704917445019,-180.075391,0.00035871,2]
[311116258,1704917445028,-150.322426,0.00035871,2]
[311116259,1704917445037,-5000.0,0.00035877,2]
[311116260,1704917445047,-44868.04639883,0.000359,3]
[311116261,1704917445057,-300.0,0.000359,9]
[311116262,1704917445066,-250.0,0.000359,9]
[311116263,1704917445076,-983.61,0.0003591,2]
[311116264,1704917445085,-151.54447451,0.00035914,2]
[311116265,1704917445096,-150.0,0.00035944,2]
[311116266,1704917445106,-500.0,0.00035944,7]
[311116267,1704917445115,-922.344855,0.00035964,8]
[311116268,1704917445125,-922.34485486,0.00035964,8]
[311116269,1704917445134,-922.34485486,0.00035964,8]
[311116270,1704917445144,-922.34485486,0.00035964,8]
[311116271,1704917445153,-922.34485486,0.00035964,8]
[311116272,1704917445163,-200.0,0.00035987,2]
[311116273,1704917445173,-100000.0,0.00036,3]
[311116274,1704917445191,-151.0,0.00036,7]
[311116275,1704917445201,-6081.46635742,0.00036,4]
[311116276,1704917445211,-3000.00141714,0.00036,2]
[311116277,1704917445220,-936.59,0.00036,2]
[311116278,1704917445230,-8750.0,0.00036,2]